fUST/lending_fUST_20240806
["ID","MTS","AMOUNT","RATE_DAILY","PERIOD"]
[334302112,1722928248273,-500.0,0.00041095,31]
[334302113,1722928248282,-500.0,0.00041095,31]
[334302114,1722928248292,-500.0,0.00041095,31]
[334302115,1722928248301,-500.0,0.00041095,31]
[334302116,1722928248311,-500.0,0.00041095,31]
[334302117,1722928248321,-500.0,0.00041095,31]
[334302118,1722928248331,-301.42347458,0.00041095,31]
[334302119,1722928248340,-500.0,0.00041095,31]
[334302120,1722928248350,-3020.98,0.00041095,31]
[334302121,1722928248359,-500.0,0.00041095,31]
[334302122,1722928248369,-1921.79,0.00041095,31]
[334302123,1722928248378,-500.0,0.00041095,31]
[334302124,1722928248387,-500.0,0.00041095,31]
[334302125,1722928248397,-500.0,0.00041095,31]
[334302126,1722928248407,-500.5222537,0.00041095,31]
[334302127,1722928248416,-500.0,0.00041095,31]
[334302128,1722928248425,-500.0,0.00041095,31]
[334302129,1722928248434,-500.0,0.00041095,31]
[334302130,1722928248444,-500.0,0.00041095,31]
[334302131,1722928248454,-500.0,0.00041095,31]
[334302132,1722928248464,-500.0,0.00041095,31]
[334302133,1722928248473,-500.0,0.00041095,31]
[334302134,1722928248482,-1158.51,0.00041095,31]
[334302135,1722928248491,-500.0,0.00041095,31]
[334302136,1722928248501,-500.0,0.00041095,31]
[334302137,1722928248514,-3125.0,0.00041095,31]
[334302138,1722928248524,-500.0,0.00041095,31]
[334302139,1722928248533,-1296.63,0.00041095,31]
[334302140,1722928248542,-1179.36,0.00041095,31]
[334302141,1722928248551,-500.0,0.00041095,31]
[334302142,1722928248560,-654.04,0.00041095,31]
[334302143,1722928248570,-522.24054829,0.00041095,31]
[334302144,1722928248579,-500.0,0.00041095,31]
[334302145,1722928248589,-734.55121874,0.00041095,31]
[334302146,1722928248685,-1535.49878126,0.00041095,31]
[334302147,1722928248695,-500.0,0.00041095,31]
[334302148,1722928248704,-500.0,0.00041095,31]
[334302149,1722928248713,-500.0,0.00041095,31]
[334302150,1722928248723,-779.63,0.00041095,31]
[334302151,1722928248732,-500.0,0.00041095,31]
[334302152,1722928248742,-1376.21,0.00041095,31]
[334302153,1722928248751,-500.0,0.00041095,31]
[334302154,1722928248761,-500.0,0.00041095,31]
[334302155,1722928248771,-502.45465813,0.00041095,31]
[334302156,1722928248781,-500.0,0.00041095,31]
[334302157,1722928248791,-500.0,0.00041095,31]
[334302158,1722928248800,-500.0,0.00041095,31]
[334302159,1722928248809,-500.0,0.00041095,31]
[334302160,1722928248819,-500.0,0.00041095,31]
[334302161,1722928248828,-500.0,0.00041095,31]
[334302162,1722928248837,-500.0,0.00041095,31]
[334302163,1722928248847,-500.0,0.00041095,31]
[334302164,1722928248857,-500.0,0.00041095,31]
[334302165,1722928248867,-500.0,0.00041095,31]
[334302166,1722928248876,-500.0,0.00041095,31]
[334302167,1722928248885,-500.0,0.00041095,31]
[334302168,1722928248895,-500.0,0.00041095,31]
[334302169,1722928248904,-373.0490211,0.00041095,31]
[334302170,1722928248914,-500.0,0.00041095,31]
[334302171,1722928248924,-1822.42,0.00041095,31]
[334302172,1722928248934,-876.33,0.00041095,31]
[334302173,1722928248943,-500.0,0.00041095,31]
[334302174,1722928248953,-500.0,0.00041095,31]
[334302175,1722928248962,-1157.4,0.00041095,31]
[334302176,1722928248972,-514.60763727,0.00041095,31]
[334302177,1722928248982,-500.0,0.00041095,31]
[334302178,1722928248992,-500.0,0.00041095,31]
[334302179,1722928249002,-500.0,0.00041095,31]
[334302180,1722928249013,-500.0,0.00041095,31]
[334302181,1722928249028,-500.0,0.00041095,31]
[334302182,1722928249038,-500.0,0.00041095,31]
[334302183,1722928249048,-500.0,0.00041095,31]
[334302184,1722928249057,-501.47744705,0.00041095,31]
[334302185,1722928249067,-500.0,0.00041095,31]
[334302186,1722928249077,-500.0,0.00041095,31]
[334302187,1722928249086,-500.0,0.00041095,31]
[334302188,1722928249095,-500.0,0.00041095,31]
[334302189,1722928249108,-500.0,0.00041095,31]
[334302190,1722928249118,-500.0,0.00041095,31]
[334302191,1722928249128,-500.0,0.00041095,31]
[334302192,1722928249138,-500.0,0.00041095,31]
[334302193,1722928249150,-500.0,0.00041095,31]
[334302194,1722928249162,-500.0,0.00041095,31]
[334302195,1722928249171,-500.0,0.00041095,31]
[334302196,1722928249181,-500.0,0.00041095,31]
[334302197,1722928249190,-500.0,0.00041095,31]
[334302198,1722928249200,-500.0,0.00041095,31]
[334302199,1722928249209,-500.0,0.00041095,31]
[334302200,1722928249219,-500.0,0.00041095,31]
[334302201,1722928249229,-1237.64,0.00041095,31]
[334302202,1722928249239,-500.64990023,0.00041095,31]
[334302203,1722928249248,-500.0,0.00041095,31]
[334302204,1722928249258,-885.83,0.00041095,31]
[334302205,1722928249269,-1497.65,0.00041095,31]
[334302206,1722928249279,-500.0,0.00041095,31]
[334302207,1722928249288,-500.0,0.00041095,31]
[334302208,1722928249298,-500.0,0.00041095,31]
[334302209,1722928249307,-531.72138596,0.00041095,31]
[334302210,1722928249316,-500.0,0.00041095,31]
[334302211,1722928249326,-500.0,0.00041095,31]
[334302212,1722928249335,-500.0,0.00041095,31]
[334302213,1722928249345,-523.00481082,0.00041095,31]
[334302214,1722928249355,-1376.12,0.00041095,31]
[334302215,1722928249364,-500.0,0.00041095,31]
[334302216,1722928249374,-500.0,0.00041095,31]
[334302217,1722928249383,-500.0,0.00041095,31]
[334302218,1722928249392,-893.39,0.00041095,31]
[334302219,1722928249402,-505.57175316,0.00041095,31]
[334302220,1722928249411,-500.0,0.00041095,31]
[334302221,1722928249421,-500.0,0.00041095,31]
[334302222,1722928249431,-500.0,0.00041095,31]
[334302223,1722928249441,-500.0,0.00041095,31]
[334302224,1722928249450,-500.0,0.00041095,31]
[334302225,1722928249459,-1595.51,0.00041095,31]
[334302226,1722928249469,-500.0,0.00041095,31]
[334302227,1722928249478,-500.0,0.00041095,31]
[334302228,1722928249488,-500.0,0.00041095,31]
[334302229,1722928249497,-505.68695684,0.00041095,31]
[334302230,1722928249506,-500.0,0.00041095,31]
[334302231,1722928249517,-1556.19,0.00041095,31]
[334302232,1722928249534,-500.0,0.00041095,31]
[334302233,1722928249543,-500.0,0.00041095,31]
[334302234,1722928249552,-500.0,0.00041095,31]
[334302235,1722928249561,-500.0,0.00041095,31]
[334302236,1722928249570,-500.0,0.00041095,31]
[334302237,1722928249579,-500.0,0.00041095,30]
[334302238,1722928249588,-500.0,0.00041095,20]
[334302239,1722928249597,-500.0,0.00041095,31]
[334302240,1722928249606,-500.0,0.00041095,31]
[334302241,1722928249615,-557.88,0.00041095,31]
[334302242,1722928249625,-500.0,0.00041095,31]
[334302243,1722928249635,-500.0,0.00041095,2]
[334302244,1722928249644,-500.0,0.00041095,31]
[334302245,1722928249653,-500.0,0.00041095,31]
[334302246,1722928249664,-500.0,0.00041095,31]
[334302247,1722928249674,-500.0,0.00041095,31]
[334302248,1722928249684,-500.0,0.00041095,31]
[334302249,1722928249693,-500.0,0.00041095,31]
[334302250,1722928249703,-500.0,0.00041095,31]
[334302251,1722928249713,-1120.77,0.00041095,31]
[334302252,1722928249723,-500.0,0.00041095,31]
[334302253,1722928249732,-500.0,0.00041095,31]
[334302254,1722928249742,-500.0,0.00041095,31]
[334302255,1722928249751,-500.0,0.00041095,31]
[334302256,1722928249761,-500.0,0.00041095,31]
[334302257,1722928249774,-500.0,0.00041095,31]
[334302258,1722928249783,-500.0,0.00041095,31]
[334302259,1722928249926,-500.0,0.00041095,31]
[334302260,1722928249936,-500.0,0.00041095,31]
[334302261,1722928249946,-500.0,0.00041095,31]
[334302262,1722928249956,-500.0,0.00041095,31]
[334302263,1722928249966,-500.0,0.00041095,31]
[334302264,1722928249975,-500.0,0.00041095,31]
[334302265,1722928249986,-500.0,0.00041095,31]
[334302266,1722928249995,-500.0,0.00041095,31]
[334302267,1722928250004,-847.97,0.00041095,31]
[334302268,1722928250016,-500.0,0.00041095,31]
[334302269,1722928250032,-500.0,0.00041095,31]
[334302270,1722928250044,-500.0,0.00041095,31]
[334302271,1722928250055,-500.0,0.00041095,31]
[334302272,1722928250065,-500.0,0.00041095,31]
[334302273,1722928250075,-500.0,0.00041095,31]
[334302274,1722928250085,-618.98,0.00041095,31]
[334302275,1722928250098,-500.0,0.00041095,31]
[334302276,1722928250108,-500.0,0.00041095,31]
[334302277,1722928250120,-500.0,0.00041095,31]
[334302278,1722928250130,-500.0,0.00041095,31]
[334302279,1722928250139,-512.80833345,0.00041095,31]
[334302280,1722928250149,-500.0,0.00041095,31]
[334302281,1722928250158,-500.0,0.00041095,31]
[334302282,1722928250167,-500.0,0.00041095,31]
[334302283,1722928250178,-500.0,0.00041095,31]
[334302284,1722928250189,-500.0,0.00041095,31]
[334302285,1722928250200,-583.87,0.00041095,31]
[334302286,1722928250210,-500.0,0.00041095,31]
[334302287,1722928250221,-500.0,0.00041095,31]
[334302288,1722928250231,-500.0,0.00041095,31]
[334302289,1722928250241,-522.3021497,0.00041095,31]
[334302290,1722928250253,-500.0,0.00041095,31]
[334302291,1722928250262,-500.0,0.00041095,31]
[334302292,1722928250275,-500.0,0.00041095,31]
[334302293,1722928250285,-1581.4,0.00041095,31]
[334302294,1722928250294,-500.0,0.00041095,31]
[334302295,1722928250304,-500.0,0.00041095,31]
[334302296,1722928250314,-565.4385483,0.00041095,31]
[334302297,1722928250323,-500.0,0.00041095,31]
[334302298,1722928250334,-500.0,0.00041095,31]
[334302299,1722928250346,-500.0,0.00041095,31]
[334302300,1722928250357,-500.0,0.00041095,31]
[334302301,1722928250367,-500.0,0.00041095,31]
[334302302,1722928250376,-500.0,0.00041095,31]
[334302303,1722928250385,-8901.74,0.00041095,31]
[334302304,1722928250395,-500.0,0.00041095,31]
[334302305,1722928250405,-500.0,0.00041095,31]
[334302306,1722928250414,-500.0,0.00041095,31]
[334302307,1722928250423,-500.0,0.00041095,31]
[334302308,1722928250433,-500.0,0.00041095,31]
[334302309,1722928250443,-500.0,0.00041095,31]
[334302310,1722928250454,-500.0,0.00041095,31]
[334302311,1722928250463,-500.0,0.00041095,31]
[334302312,1722928250473,-500.0,0.00041095,31]
[334302313,1722928250482,-500.0,0.00041095,31]
[334302314,1722928250491,-500.0,0.00041095,31]
[334302315,1722928250501,-533.65149943,0.00041095,31]
[334302316,1722928250511,-500.0,0.00041095,31]
[334302317,1722928250521,-500.0,0.00041095,31]
[334302318,1722928250531,-500.0,0.00041095,31]
[334302319,1722928250540,-500.0,0.00041095,31]
[334302320,1722928250549,-500.0,0.00041095,31]
[334302321,1722928250559,-974.35,0.00041095,31]
[334302322,1722928250569,-974.35,0.00041095,31]
[334302323,1722928250578,-974.35,0.00041095,31]
[334302324,1722928250588,-974.35,0.00041095,31]
[334302325,1722928250598,-974.35,0.00041095,31]
[334302326,1722928250607,-974.35,0.00041095,31]
[334302327,1722928250616,-500.0,0.00041095,31]
[334302328,1722928250625,-500.0,0.00041095,31]
[334302329,1722928250634,-974.35,0.00041095,31]
[334302330,1722928250645,-974.35,0.00041095,31]
[334302331,1722928250655,-974.35,0.00041095,31]
[334302332,1722928250664,-500.0,0.00041095,31]
[334302333,1722928250674,-974.35,0.00041095,31]
[334302334,1722928250683,-500.0,0.00041095,31]
[334302335,1722928250693,-974.35,0.00041095,31]
[334302336,1722928250701,-974.35,0.00041095,31]
[334302337,1722928250711,-974.35,0.00041095,31]
[334302338,1722928250720,-974.35,0.00041095,31]
[334302339,1722928250730,-500.0,0.00041095,31]
[334302340,1722928250739,-974.35,0.00041095,31]
[334302341,1722928250750,-974.35,0.00041095,31]
[334302342,1722928250760,-974.35,0.00041095,31]
[334302343,1722928250772,-974.35,0.00041095,31]
[334302344,1722928250781,-974.35,0.00041095,31]
[334302345,1722928250789,-974.35,0.00041095,31]
[334302346,1722928250798,-974.35,0.00041095,31]
[334302347,1722928250807,-974.35,0.00041095,31]
[334302348,1722928250816,-974.35,0.00041095,31]
[334302349,1722928250825,-974.39019324,0.00041095,31]
[334302350,1722928250835,-5101.22,0.00041095,31]
[334302351,1722928250844,-508.8009674,0.00041095,31]
[334302352,1722928250854,-500.0,0.00041095,31]
[334302353,1722928250864,-500.0,0.00041095,31]
[334302354,1722928250873,-500.63198735,0.00041095,7]
[334302355,1722928250883,-1259.58,0.00041095,31]
[334302356,1722928250893,-500.0,0.00041095,31]
[334302357,1722928250903,-500.0,0.00041095,31]
[334302358,1722928250913,-500.0,0.00041095,31]
[334302359,1722928250922,-1179.48,0.00041095,31]
[334302360,1722928250931,-501.57914443,0.00041095,31]
[334302361,1722928250940,-500.0,0.00041095,31]
[334302362,1722928250949,-500.0,0.00041095,31]
[334302363,1722928250958,-500.0,0.00041095,31]
[334302364,1722928250967,-500.0,0.00041095,31]
[334302365,1722928250976,-656.02,0.00041095,31]
[334302366,1722928250985,-500.0,0.00041095,31]
[334302367,1722928250995,-500.0,0.00041095,31]
[334302368,1722928251004,-1392.69,0.00041095,31]
[334302369,1722928251015,-1620.08,0.00041095,31]
[334302370,1722928251029,-500.0,0.00041095,31]
[334302371,1722928251038,-500.0,0.00041095,31]
[334302372,1722928251047,-2042.26,0.00041095,31]
[334302373,1722928251056,-500.0,0.00041095,31]
[334302374,1722928251065,-500.0,0.00041095,31]
[334302375,1722928251074,-1944.61,0.00041095,31]
[334302376,1722928251084,-500.0,0.00041095,31]
[334302377,1722928251095,-500.0,0.00041095,31]
[334302378,1722928251105,-500.0,0.00041095,31]
[334302379,1722928251114,-1506.87,0.00041095,31]
[334302380,1722928251124,-635.26,0.00041095,31]
[334302381,1722928251133,-541.44526863,0.00041095,31]
[334302382,1722928251142,-500.0,0.00041095,31]
[334302383,1722928251152,-500.0,0.00041095,31]
[334302384,1722928251161,-500.0,0.00041095,31]
[334302385,1722928251170,-500.0,0.00041095,31]
[334302386,1722928251179,-500.0,0.00041095,31]
[334302387,1722928251189,-500.0,0.00041095,31]
[334302388,1722928251198,-500.0,0.00041095,31]
[334302389,1722928251208,-2054.0,0.00041095,31]
[334302390,1722928251218,-509.41,0.00041095,31]
[334302391,1722928251227,-479.02556988,0.00041095,31]
[334302392,1722928251237,-500.0,0.00041095,31]
[334302393,1722928251246,-500.0,0.00041095,31]
[334302394,1722928251256,-500.0,0.00041095,31]
[334302395,1722928251265,-500.0,0.00041095,31]
[334302396,1722928251276,-500.0,0.00041095,31]
[334302397,1722928251285,-500.0,0.00041095,31]
[334302398,1722928251295,-500.0,0.00041095,31]
[334302399,1722928251304,-639.07018219,0.00041095,31]
[334302400,1722928251313,-500.0,0.00041095,31]
[334302401,1722928251323,-500.0,0.00041095,31]
[334302402,1722928251332,-2425.43,0.00041095,31]
[334302403,1722928251341,-500.0,0.00041095,31]
[334302404,1722928251351,-500.0,0.00041095,31]
[334302405,1722928251361,-500.0,0.00041095,31]
[334302406,1722928251370,-647.88,0.00041095,31]
[334302407,1722928251380,-500.0,0.00041095,31]
[334302408,1722928251389,-500.0,0.00041095,31]
[334302409,1722928251398,-500.0,0.00041095,31]
[334302410,1722928251408,-500.0,0.00041095,31]
[334302411,1722928251418,-500.0,0.00041095,31]
[334302412,1722928251427,-511.43,0.00041095,31]
[334302413,1722928251437,-1305.96,0.00041095,31]
[334302414,1722928251446,-500.0,0.00041095,31]
[334302415,1722928251457,-500.0,0.00041095,31]
[334302416,1722928251466,-449.66155475,0.00041095,31]
[334302417,1722928251476,-500.0,0.00041095,31]
[334302418,1722928251485,-500.0,0.00041095,31]
[334302419,1722928251494,-500.0,0.00041095,31]
[334302420,1722928251503,-1488.01,0.00041095,31]
[334302421,1722928251513,-500.0,0.00041095,31]
[334302422,1722928251523,-1470.81,0.00041095,31]
[334302423,1722928251532,-500.0,0.00041095,31]
[334302424,1722928251541,-500.0,0.00041095,31]
[334302425,1722928251550,-2627.1,0.00041095,31]
[334302426,1722928251560,-1943.01,0.00041095,31]
[334302427,1722928251569,-3758.54,0.00041095,31]
[334302428,1722928251579,-1072.68,0.00041095,31]
[334302429,1722928251588,-509.9,0.00041095,31]
[334302430,1722928251597,-500.0,0.00041095,31]
[334302431,1722928251606,-500.0,0.00041095,31]
[334302432,1722928251616,-833.06,0.00041095,31]
[334302433,1722928251625,-1327.64,0.00041095,31]
[334302434,1722928251635,-1377.59,0.00041095,31]
[334302435,1722928251646,-2360.76,0.00041095,31]
[334302436,1722928251655,-500.0,0.00041095,31]
[334302437,1722928251666,-1422.3,0.00041095,31]
[334302438,1722928251675,-1084.25,0.00041095,31]
[334302439,1722928251684,-559.08,0.00041095,31]
[334302440,1722928251693,-9729.24,0.00041095,31]
[334302441,1722928251703,-500.0,0.00041095,31]
[334302442,1722928251712,-2160.65,0.00041095,31]
[334302443,1722928251721,-500.0,0.00041095,31]
[334302444,1722928251730,-500.0,0.00041095,31]
[334302445,1722928251740,-500.0,0.00041095,31]
[334302446,1722928251749,-500.0,0.00041095,31]
[334302447,1722928251759,-500.0,0.00041095,31]
[334302448,1722928251770,-1673.46,0.00041095,31]
[334302449,1722928251780,-500.0,0.00041095,31]
[334302450,1722928251790,-500.0,0.00041095,31]
[334302451,1722928251799,-500.0,0.00041095,31]
[334302452,1722928251810,-2229.11,0.00041095,31]
[334302453,1722928251819,-500.0,0.00041095,31]
[334302454,1722928251828,-500.0,0.00041095,31]
[334302455,1722928251838,-500.0,0.00041095,31]
[334302456,1722928251848,-500.0,0.00041095,31]
[334302457,1722928251858,-5254.86,0.00041095,31]
[334302458,1722928251868,-500.0,0.00041095,31]
[334302459,1722928251877,-1321.07,0.00041095,31]
[334302460,1722928251887,-500.0,0.00041095,31]
[334302461,1722928251896,-1796.74,0.00041095,31]
[334302462,1722928251906,-4314.55,0.00041095,31]
[334302463,1722928251915,-1954.34,0.00041095,31]
[334302464,1722928251924,-500.0,0.00041095,31]
[334302465,1722928251934,-1103.51,0.00041095,31]
[334302466,1722928251943,-500.0,0.00041095,31]
[334302467,1722928251952,-500.0,0.00041095,31]
[334302468,1722928251962,-500.0,0.00041095,31]
[334302469,1722928251972,-500.0,0.00041095,31]
[334302470,1722928251981,-1586.05224943,0.00041095,31]
[334302471,1722928252128,-154.89138088,0.00020568,2]
[334302472,1722928252138,-200.0,0.00020573,2]
[334302473,1722928252148,-284.65861912,0.00021942,2]
[334302474,1722928252286,-115.34138088,0.00021942,2]
[334302475,1722928252295,-26.77741061,0.00023946,2]
[334302477,1722928346277,273.37336231,9.9e-05,2]
[334302478,1722928354850,273.37336231,9.9e-05,2]
[334302479,1722928361434,282.73351605,0.00012,2]
[334302480,1722928361769,318.29934463,0.00012,2]
[334302481,1722928361799,470.88148729,0.00012,2]
[334302482,1722928363730,181.39053625,9.9e-05,2]
[334302483,1722928369061,2748.97711286,0.00012,2]
[334302484,1722928369097,845.54644341,0.00012,2]
[334302485,1722928369177,357.03779358,0.00012,2]
[334302486,1722928370319,288.83483436,0.00012,2]
[334302488,1722928375350,3959.55220695,0.00012,2]
[334302489,1722928375373,5151.21648053,0.00012,2]
[334302490,1722928376244,1991.94991085,0.00012,2]
[334302491,1722928378115,2856.83360862,0.00012,2]
[334302492,1722928378142,231.22703599,0.00012,2]
[334302494,1722928380741,250.38146921,0.00012,2]
[334302495,1722928383399,154.65203293,9.9e-05,2]
[334302496,1722928384120,156.89400092,0.00012,2]
[334302497,1722928384412,246.41306879,0.00012,2]
[334302498,1722928384610,341.91139724,0.00012,2]
[334302499,1722928384979,694.25197697,0.00012,2]
[334302501,1722928386210,218.21171043,9.9e-05,2]
[334302502,1722928387288,184.64082791,9.9e-05,2]
[334302503,1722928388794,157.90106976,0.00012,2]
[334302504,1722928388946,616.97897138,0.00012,2]
[334302505,1722928389938,241.3496797,0.00012,2]
[334302507,1722928390962,154.67225457,0.00014,2]
[334302508,1722928391014,1610.90790663,0.00012,2]
[334302509,1722928391503,414.88650261,0.00012,2]
[334302510,1722928393006,155.74882219,0.00012,2]
[334302511,1722928394355,155.02102962,0.00012,2]
[334302512,1722928394945,1368.86585383,0.00012,2]
[334302513,1722928396539,7912.46799449,9.9e-05,2]
[334302514,1722928398440,816.39879119,0.00012,2]
[334302515,1722928398824,154.81113139,0.00012,2]
[334302516,1722928400657,810.1149959,0.00012,2]
[334302517,1722928400750,26120.50095144,0.00013,2]
[334302518,1722928404887,154.92106328,0.00012,2]
[334302521,1722928428739,928.7536126,0.00013,2]
[334302522,1722928433051,240.05477327,0.00013,2]
[334302523,1722928433208,155.38093585,0.00013,2]
[334302524,1722928434796,1752.0359975,0.00013,2]
[334302526,1722928471450,154.94652842,0.00013,2]
[334302529,1722928783213,156.73199194,9.999e-05,2]
[334302530,1722928841470,199.22102348,9.999e-05,2]
[334302532,1722928888333,1091.69139402,0.00014,2]
[334302533,1722928897174,308.80054286,0.0001212,2]
[334302535,1722929114713,150.5,0.00023926,120]
[334302536,1722929114771,150.5,0.00023926,120]
[334302537,1722929114828,224.16,0.00023916,120]
[334302538,1722929114917,150.5,0.00023916,120]
[334302539,1722929115399,150.5,0.00023906,120]
[334302540,1722929115494,150.5,0.00023926,120]
[334302541,1722929116060,150.5,0.00023916,120]
[334302542,1722929116926,150.5,0.00023906,120]
[334302544,1722929216479,664.37201116,9.999e-05,2]
[334302545,1722929231178,-4839.07759787,0.00014147,2]
[334302546,1722929231223,-317.471472,0.00014247,2]
[334302547,1722929231261,-160.588592,0.00014247,2]
[334302548,1722929231301,-1091.08919414,0.00014691,2]
[334302549,1722929231341,-300.0,0.00014983,2]
[334302550,1722929231377,-207.68899902,0.00014984,2]
[334302551,1722929231415,-500.0,0.00014984,2]
[334302552,1722929231453,-621.40614452,0.00014984,2]
[334302553,1722929231499,-500.0,0.00014984,2]
[334302554,1722929231538,-500.0,0.00014984,2]
[334302555,1722929231576,-203.86972762,0.00014984,2]
[334302556,1722929231613,-409.62580055,0.00014984,2]
[334302557,1722929231652,-1171.18247228,0.00014985,2]
[334302558,1722929234695,181.5,0.00023926,120]
[334302559,1722929243142,-4246.33367997,0.00014985,2]
[334302560,1722929244615,899.6999079,0.000136,2]
[334302561,1722929247229,-6664.3604266,0.00014985,2]
[334302562,1722929252169,-287.10615223,0.00014985,2]
[334302564,1722929270003,665.77536392,0.0001212,2]
[334302565,1722929317406,1592.09147828,0.00015,7]
[334302567,1722929345168,-300.0,0.00014984,2]
[334302568,1722929345191,-12531.01726892,0.00014985,2]
[334302569,1722929345219,-492.52191219,0.00015,2]
[334302570,1722929345240,-1564.99095136,0.00015,2]
[334302571,1722929345263,-250.0,0.0001545,2]
[334302572,1722929345284,-419.051003,0.00015485,2]
[334302573,1722929345308,-250.0,0.00015492,2]
[334302574,1722929345334,-250.0,0.00015535,2]
[334302575,1722929345357,-250.0,0.00015577,2]
[334302576,1722929345384,-250.0,0.00015619,2]
[334302577,1722929345407,-250.0,0.00015662,2]
[334302578,1722929345432,-250.0,0.00015704,2]
[334302579,1722929345456,-1163.02940656,0.00015708,2]
[334302580,1722929345479,-250.0,0.00015747,2]
[334302581,1722929345504,-250.0,0.00015789,2]
[334302582,1722929345527,-250.0,0.00015831,2]
[334302583,1722929345552,-250.0,0.00015874,2]
[334302584,1722929345578,-250.0,0.00015916,2]
[334302585,1722929345600,-2685.8654128,0.00015946,2]
[334302586,1722929345622,-250.0,0.00015958,2]
[334302587,1722929345645,-250.0,0.00016001,2]
[334302588,1722929345668,-250.0,0.00016043,2]
[334302589,1722929345691,-250.0,0.00016086,2]
[334302590,1722929345714,-250.0,0.00016128,2]
[334302591,1722929345737,-250.0,0.0001617,2]
[334302592,1722929345760,-250.0,0.00016213,2]
[334302593,1722929345784,-250.0,0.00016255,2]
[334302594,1722929345809,-189.31885862,0.00016482,2]
[334302595,1722929345837,-420.0,0.00016483,2]
[334302596,1722929353145,-8196.12617949,0.00019167,2]
[334302597,1722929355167,150.5,0.0002376,120]
[334302598,1722929355644,150.5,0.0002375,120]
[334302599,1722929356205,150.5,0.0002374,120]
[334302601,1722929357279,912.60929894,0.00015,2]
[334302602,1722929360129,-10694.65143411,0.00019167,2]
[334302605,1722929374521,274.62375497,0.00015,2]
[334302606,1722929382931,452.46211665,0.00018182,2]
[334302625,1722929432728,-7002.81077238,0.00019147,2]
[334302626,1722929432737,-1355.03784862,0.00019155,3]
[334302627,1722929432843,-331.50592159,0.00019155,3]
[334302628,1722929432853,-408.97857025,0.00019167,2]
[334302629,1722929432865,-714.73489578,0.00019167,2]
[334302683,1722929438013,-1015.77677166,0.00019167,2]
[334302684,1722929438022,-1642.66780351,0.00019167,2]
[334302685,1722929438032,-403.85748772,0.00019177,2]
[334302686,1722929438041,-172.023901,0.00019178,2]
[334302687,1722929438050,-1438.50307528,0.00019256,2]
[334302688,1722929438060,-1383.1311371,0.00019256,2]
[334302689,1722929438069,-951.94046237,0.00019256,2]
[334302690,1722929438078,-1438.50307528,0.00019256,2]
[334302691,1722929438087,-154.72922386,0.00019256,2]
[334302692,1722929438096,-862.42234122,0.00019451,2]
[334302693,1722929438106,-154.9390797,0.00019451,2]
[334302694,1722929438115,-553.28921925,0.00019451,2]
[334302695,1722929438124,-194.60736977,0.00019451,2]
[334302696,1722929438134,-209.22780874,0.00019477,2]
[334302697,1722929438143,-273.74136062,0.00019477,2]
[334302698,1722929438152,-209.22780874,0.00019477,2]
[334302699,1722929438162,-600.90391779,0.00019477,2]
[334302700,1722929438171,-202.59854536,0.00019547,2]